Workbook

Sheet 附件4
A1: 附件4：
A2: 2024年末江门市政府债务限额预测数
J3: 单位：万元
A4: 项 目 | B4: 全市 | C4: 市本级 | D4: 蓬江区 | E4: 江海区 | F4: 新会区 | G4: 台山市 | H4: 开平市 | I4: 鹤山市 | J4: 恩平市
A5: 一、2023年债务限额 | B5: =B6+B7 -> 10,893,510 | C5: =SUM(C6:C7) -> 1,541,490 | D5: =SUM(D6:D7) -> 1,429,782 | E5: 833,810 | F5: 2,464,927 | G5: 1,604,943 | H5: 1,297,907 | I5: 1,160,594 | J5: 560,058
A6: （1）一般债务限额 | B6: =C6+D6+E6+F6+G6+H6+I6+J6 -> 3,187,729 | C6: 727,009 | D6: 236,805 | E6: 53,262 | F6: 1,062,798 | G6: 249,721 | H6: 520,967 | I6: 209,794 | J6: 127,373
A7: （2）专项债务限额 | B7: =C7+D7+E7+F7+G7+H7+I7+J7 -> 7,705,781 | C7: 814,481 | D7: 1,192,977 | E7: 780,548 | F7: 1,402,129 | G7: 1,355,222 | H7: 776,940 | I7: 950,800 | J7: 432,685
A8: 二、2024年新增债券额度 | B8: =SUM(B9:B10) -> 1,670,000 | C8: =SUM(C9:C10) -> 70,000 | D8: =SUM(D9:D10) -> 130,000 | E8: 55,000 | F8: 370,000 | G8: 340,000 | H8: 270,000 | I8: 230,000 | J8: 205,000
A9: （1）一般债务额度 | B9: =SUM(C9:J9) -> 0 | C9: 0 | D9: 0 | E9: 0 | F9: 0 | G9: 0 | H9: 0 | I9: 0 | J9: 0
A10: （2）专项债务额度 | B10: =SUM(C10:J10) -> 1,670,000 | C10: 70,000 | D10: 130,000 | E10: 55,000 | F10: 370,000 | G10: 340,000 | H10: 270,000 | I10: 230,000 | J10: 205,000
A11: 三、2024年末债务限额预测值 （三=一+二） | B11: =B5+B8 -> 12,563,510 | C11: 1,611,490 | D11: 1,559,782 | E11: 888,810 | F11: 2,834,927 | G11: 1,944,943 | H11: 1,567,907 | I11: 1,390,594 | J11: 765,058
A12: （1）一般债务限额 | B12: 3,187,729 | C12: 727,009 | D12: =D6+D9 -> 236,805 | E12: =E6+E9 -> 53,262 | F12: 1,062,798 | G12: 249,721 | H12: 520,967 | I12: 209,794 | J12: 127,373
A13: （2）专项债务限额 | B13: 9,375,781 | C13: 884,481 | D13: =D7+D10 -> 1,322,977 | E13: =E7+E10 -> 835,548 | F13: 1,772,129 | G13: 1,695,222 | H13: 1,046,940 | I13: 1,180,800 | J13: 637,685
A14: 备注：1.本预测数据是以2024年8月6日时点掌握的数据进行的预测； 2.本预测数据未考虑后续新增债券额度下达、政府债务限额回收等情况。
